bitfinex/quotes_BTCUSD_20240905
["timestamp","ask_amount","ask_price","bid_price","bid_amount"]
[1725563688820,1.70476373,56523.0,56522.0,0.003636]
[1725563696192,0.82016873,56523.0,56522.0,0.410558]
[1725563696385,0.82016873,56523.0,56522.0,0.764402]
[1725563697912,0.82016873,56523.0,56522.0,0.233636]
[1725563698158,0.81116873,56523.0,56522.0,0.409558]
[1725563698382,0.81116873,56523.0,56522.0,0.002636]
[1725563698383,2.01017796,56523.0,56522.0,0.002636]
[1725563698598,2.41311007,56523.0,56522.0,0.002636]
[1725563698818,2.70599609,56523.0,56522.0,0.002636]
[1725563699022,2.7060017,56523.0,56522.0,0.002636]
[1725563699231,3.80002987,56523.0,56522.0,0.002636]
[1725563699465,3.43158687,56523.0,56522.0,0.002636]
[1725563699674,2.68835633,56523.0,56522.0,0.002636]
[1725563699893,2.58308363,56523.0,56522.0,0.002636]
[1725563704669,2.98601574,56523.0,56522.0,0.002636]
[1725563704866,3.24181723,56523.0,56522.0,0.002636]
[1725563705067,3.11730874,56523.0,56522.0,0.002636]
[1725563705270,3.24891023,56523.0,56522.0,0.002636]
[1725563705477,3.19081612,56523.0,56522.0,0.001636]
[1725563705702,3.77196063,56523.0,56522.0,0.001636]
[1725563705990,3.77196063,56523.0,56507.0,0.00164]
[1725563705991,0.012,56521.0,56507.0,0.00164]
[1725563706216,2.09336151,56508.0,56507.0,0.00164]
[1725563706426,2.13330823,56508.0,56507.0,0.00164]
[1725563706625,2.89303916,56508.0,56507.0,0.00164]
[1725563706861,2.55756923,56508.0,56507.0,0.00164]
[1725563707069,2.35697196,56508.0,56507.0,0.00164]
[1725563707302,2.25177696,56508.0,56507.0,0.00164]
[1725563708566,2.86156763,56508.0,56507.0,0.00264]
[1725563709528,2.26513563,56508.0,56507.0,0.00164]
[1725563709706,1.3705894,56508.0,56507.0,0.00164]
[1725563709968,1.2076234,56508.0,56507.0,0.00164]
[1725563710181,1.67305691,56508.0,56507.0,0.00264]
[1725563710392,1.30512491,56508.0,56507.0,0.00264]
[1725563710823,0.93129873,56508.0,56507.0,0.00264]
[1725563711890,1.03509873,56508.0,56507.0,0.00264]
[1725563712103,2.10118773,56508.0,56507.0,0.00264]
[1725563712280,2.15028184,56508.0,56507.0,0.00264]
[1725563712490,2.50421384,56508.0,56507.0,0.00264]
[1725563712688,2.48287384,56508.0,56507.0,0.00264]
[1725563712907,3.3066613,56508.0,56507.0,0.00264]
[1725563713110,0.002,56502.0,56487.0,0.1112925]
[1725563713347,0.353938,56507.0,56487.0,0.1112925]
[1725563713348,0.80555251,56488.0,56487.0,0.1112925]
[1725563713556,2.29236651,56488.0,56487.0,0.1112925]
[1725563713854,2.29236651,56488.0,56487.0,0.0111925]
[1725563713969,1.93830951,56488.0,56487.0,0.0111925]
[1725563714393,2.29236651,56488.0,56487.0,0.0111925]
[1725563715036,2.29236651,56488.0,56487.0,0.0131925]
[1725563715037,2.49616651,56488.0,56487.0,0.0131925]
[1725563715264,2.97302351,56488.0,56487.0,0.0131925]
[1725563715467,2.97302351,56488.0,56487.0,0.0141925]
[1725563715910,3.55410251,56488.0,56487.0,0.0131925]
[1725563716124,3.55210251,56488.0,56487.0,0.0131925]
[1725563716341,3.55210251,56488.0,56487.0,0.0141925]
[1725563716342,3.21352051,56488.0,56487.0,0.0141925]
[1725563716795,3.20452051,56488.0,56487.0,0.0131925]
[1725563717007,3.21852051,56488.0,56487.0,0.0121925]
[1725563717221,3.21852051,56488.0,56482.0,0.00164]
[1725563717222,1.593396,56483.0,56482.0,0.00164]
[1725563717477,1.593396,56483.0,56465.0,0.00164]
[1725563717478,0.531198,56476.0,56465.0,0.00164]
[1725563717739,0.531198,56476.0,56465.0,0.17874]
[1725563717740,2.94559456,56476.0,56465.0,0.17874]
[1725563717965,0.7787,56476.0,56475.0,0.2504684]
[1725563718194,0.7787,56476.0,56475.0,0.4275374]
[1725563718426,0.7787,56476.0,56475.0,0.2504684]
[1725563718650,0.7847,56476.0,56475.0,0.7816754]
[1725563718876,0.7847,56476.0,56475.0,0.7833094]
[1725563719090,0.7847,56476.0,56475.0,1.1374474]
[1725563719311,0.7847,56476.0,56475.0,1.32295836]
[1725563719511,1.315898,56476.0,56475.0,0.2521024]
[1725563719726,2.029162,56476.0,56475.0,0.2521024]
[1725563719931,2.029162,56476.0,56475.0,0.0124024]
[1725563720171,2.118162,56476.0,56475.0,0.0124024]
[1725563720388,2.39362951,56476.0,56475.0,0.0134024]
[1725563720599,3.31385651,56476.0,56475.0,0.0124024]
[1725563720831,2.40580517,56476.0,56475.0,0.0124024]
[1725563721030,2.60188817,56476.0,56475.0,0.0124024]
[1725563721265,2.59788817,56476.0,56475.0,0.0124024]
[1725563721494,2.95202017,56476.0,56475.0,0.0124024]
[1725563721728,2.95602017,56476.0,56475.0,0.0124024]
[1725563721955,2.95802017,56476.0,56475.0,0.0124024]
[1725563722162,1.342982,56466.0,56465.0,0.00164]
[1725563722374,1.342982,56466.0,56450.0,0.00164]
[1725563722375,0.531433,56451.0,56450.0,0.00164]
[1725563722606,0.531433,56451.0,56445.0,0.00013]
[1725563722607,0.53148,56446.0,56445.0,0.00013]
[1725563722835,1.86890751,56446.0,56445.0,0.00013]
[1725563723036,2.33897751,56446.0,56445.0,0.00013]
[1725563723247,2.33897751,56446.0,56431.0,0.1222]
[1725563723248,0.88602,56432.0,56431.0,0.12213]
[1725563723449,1.23037151,56432.0,56431.0,0.12213]
[1725563723652,1.23037151,56432.0,56431.0,0.12163]
[1725563723653,0.7787,56432.0,56431.0,0.12163]
[1725563723867,0.1,56445.0,56431.0,0.12163]
[1725563723868,0.7787,56436.0,56435.0,0.177195]
[1725563724122,0.7787,56436.0,56435.0,0.531385]
[1725563724529,0.7787,56446.0,56445.0,0.177163]
[1725563724772,0.01846873,56451.0,56440.0,0.36769798]
[1725563724773,0.7787,56450.0,56440.0,0.36769798]
[1725563725008,0.014,56446.0,56444.0,0.177066]
[1725563725265,0.014,56446.0,56436.0,0.1045]
[1725563725266,0.014,56446.0,56439.0,0.354364]
[1725563725482,0.014,56446.0,56436.0,0.1141]
[1725563725483,0.27446751,56445.0,56436.0,0.1138]
[1725563725688,0.27446751,56445.0,56436.0,0.28129]
[1725563726133,0.27446751,56441.0,56436.0,0.1041]
[1725563726345,0.354325,56446.0,56436.0,0.1041]
[1725563726346,0.354344,56443.0,56436.0,0.1041]
[1725563726559,0.0004,56444.0,56439.0,0.17718]
[1725563726761,0.177175,56442.0,56437.0,0.310586]
[1725563726993,0.177175,56442.0,56437.0,0.1334]
[1725563726994,0.177185,56438.0,56437.0,0.1334]
[1725563727436,0.80602351,56438.0,56437.0,0.1334]
[1725563727648,1.58472351,56438.0,56437.0,0.1334]
[1725563727860,1.58472351,56438.0,56434.0,0.132]
[1725563727861,0.354381,56437.0,56434.0,0.132]
[1725563728089,0.531985,56435.0,56434.0,0.132]
[1725563728299,0.177207,56431.0,56430.0,0.1448325]
[1725563728511,1.93960451,56431.0,56430.0,0.0128325]
[1725563728740,2.29401951,56431.0,56430.0,0.0128325]
[1725563729014,1.310722,56431.0,56430.0,0.0128325]
[1725563729496,1.93960451,56431.0,56430.0,0.0128325]
[1725563729729,1.93960451,56431.0,56430.0,0.42084346]
[1725563729730,0.7787,56431.0,56430.0,0.42084346]
[1725563729967,0.7787,56431.0,56430.0,1.40585201]
[1725563730196,0.7817,56431.0,56430.0,1.40585201]
[1725563730457,0.7817,56431.0,56430.0,2.31980497]
[1725563730458,0.3021,56431.0,56430.0,2.31980497]
[1725563730690,0.3021,56431.0,56430.0,2.06538397]
[1725563730922,0.3001,56431.0,56430.0,2.08838397]
[1725563731151,0.2981,56431.0,56430.0,2.09038397]
[1725563731390,0.2981,56431.0,56430.0,2.44480497]
[1725563731635,0.0841,56431.0,56430.0,2.44480497]
[1725563731862,0.01846873,56451.0,56450.0,0.885737]
[1725563732098,0.25926873,56451.0,56450.0,0.885737]
[1725563732324,0.25926873,56451.0,56450.0,0.531442]
[1725563732574,0.25926873,56451.0,56443.0,0.1364]
[1725563732863,0.25926873,56451.0,56443.0,0.1268]
[1725563733089,0.0004,56443.0,56430.0,0.0128325]
[1725563733330,0.354346,56442.0,56434.0,0.1239]
[1725563733562,0.2412,56443.0,56434.0,0.1239]
[1725563733794,0.2412,56443.0,56430.0,0.18834346]
[1725563733795,0.177206,56432.0,56430.0,0.0128325]
[1725563734051,0.0004,56441.0,56431.0,0.354411]
[1725563734282,0.0004,56441.0,56430.0,0.0128325]
[1725563734283,0.177207,56431.0,56430.0,0.0128325]
[1725563734518,0.772422,56431.0,56430.0,0.0128325]
[1725563734756,1.126837,56431.0,56430.0,0.0128325]
[1725563734987,0.772422,56431.0,56430.0,0.0128325]
[1725563735233,0.2407,56431.0,56430.0,0.0128325]
[1725563735482,0.2407,56431.0,56430.0,1.57071646]
[1725563735483,0.2398,56431.0,56430.0,1.57071646]
[1725563735729,0.2398,56431.0,56430.0,1.96323746]
[1725563735969,0.2398,56431.0,56430.0,2.23970497]
[1725563736192,0.2398,56431.0,56430.0,2.26270497]
[1725563736193,0.2392,56431.0,56430.0,2.26270497]
[1725563736440,0.2401,56431.0,56430.0,0.87997446]
[1725563736698,0.2401,56431.0,56430.0,1.25439546]
[1725563736956,0.2408,56431.0,56430.0,1.25439546]
[1725563737188,0.24138672,56431.0,56430.0,1.25439546]
[1725563737428,0.23998672,56431.0,56430.0,0.1451325]
[1725563737663,1.12582372,56431.0,56430.0,0.0128325]
[1725563738176,1.49870745,56431.0,56430.0,0.0128325]
[1725563738413,1.14429245,56431.0,56430.0,0.0128325]
[1725563738887,1.14249245,56431.0,56430.0,0.0128325]
[1725563739618,1.69530745,56431.0,56430.0,0.0128325]
[1725563739851,2.05072245,56431.0,56430.0,0.0128325]
[1725563740078,2.39573717,56431.0,56430.0,0.0128325]
[1725563740553,2.13513202,56431.0,56430.0,0.0128325]
[1725563740784,1.78071702,56431.0,56430.0,0.0128325]
[1725563741002,1.78171702,56431.0,56430.0,0.0128325]
[1725563741461,1.0822873,56431.0,56430.0,0.0128325]
[1725563741690,0.7278723,56431.0,56430.0,0.0128325]
[1725563741936,1.0822873,56431.0,56430.0,0.0128325]
[1725563742168,1.42730202,56431.0,56430.0,0.0128325]
[1725563742395,1.78171702,56431.0,56430.0,0.0128325]
[1725563742625,1.78171702,56431.0,56430.0,0.0138325]
[1725563742854,1.0822873,56431.0,56430.0,0.0138325]
[1725563743093,0.02136873,56431.0,56430.0,0.1910425]
[1725563743341,0.02036873,56431.0,56430.0,0.73057446]
[1725563743585,0.02036873,56431.0,56430.0,1.08499546]
[1725563744017,0.02036873,56431.0,56430.0,0.72097446]
[1725563744441,0.0019,56431.0,56430.0,0.0138325]
[1725563744671,0.0029,56431.0,56430.0,0.0138325]
[1725563744911,0.87953672,56431.0,56430.0,0.0138325]
[1725563745139,0.87953672,56431.0,56430.0,0.0128325]
[1725563745371,0.534522,56431.0,56430.0,0.0128325]
[1725563745585,0.889937,56431.0,56430.0,0.0148325]
[1725563745805,1.23395172,56431.0,56430.0,0.0128325]
[1725563746027,0.87853672,56431.0,56430.0,0.0128325]
[1725563746250,1.23435172,56431.0,56430.0,0.0148325]
[1725563746479,1.23535172,56431.0,56430.0,0.0148325]
[1725563746905,1.23435172,56431.0,56430.0,0.0148325]
[1725563747360,1.23535172,56431.0,56430.0,0.0148325]
[1725563748996,0.0039,56431.0,56430.0,1.23179546]
[1725563749226,0.0039,56431.0,56430.0,1.60921646]
[1725563749670,0.0039,56431.0,56430.0,1.59961646]
[1725563749893,0.0039,56431.0,56430.0,0.1606325]
[1725563750115,0.0039,56431.0,56430.0,0.6741635]
[1725563750590,0.0039,56431.0,56430.0,0.0148325]
[1725563751036,0.0039,56431.0,56430.0,0.5464635]
[1725563751243,0.0039,56431.0,56430.0,1.44241646]
[1725563751457,0.0039,56431.0,56430.0,1.61391646]
[1725563751673,0.0039,56431.0,56430.0,1.61191646]
[1725563753612,0.0039,56431.0,56430.0,1.96633746]
[1725563753821,0.0039,56431.0,56430.0,2.45940694]
[1725563754034,0.0039,56431.0,56430.0,2.1835089]
[1725563754260,0.0039,56431.0,56430.0,2.10498594]
[1725563754484,0.0039,56431.0,56430.0,2.10498524]
[1725563754695,0.0039,56431.0,56430.0,2.45940624]
[1725563754905,0.0029,56431.0,56430.0,2.45740624]
[1725563755119,0.0029,56431.0,56430.0,2.08633746]
[1725563755338,0.0039,56431.0,56430.0,2.18250793]
[1725563755573,0.0039,56431.0,56430.0,2.10398497]
[1725563756289,0.0029,56431.0,56430.0,2.20868226]
[1725563756728,0.0039,56431.0,56430.0,2.46640597]
[1725563756934,0.0039,56431.0,56430.0,2.11198497]
[1725563757177,0.0039,56431.0,56430.0,2.46640597]
[1725563757391,0.0039,56431.0,56430.0,2.24285658]
[1725563757596,0.0039,56431.0,56430.0,2.20077396]
[1725563757813,0.0039,56431.0,56430.0,2.21742147]
[1725563758020,0.0039,56431.0,56430.0,2.57184247]
[1725563758235,0.0039,56431.0,56430.0,2.46640597]
[1725563758442,0.0039,56431.0,56430.0,2.4664058]
[1725563758890,0.0039,56431.0,56430.0,2.44975846]
[1725563759132,0.0039,56431.0,56430.0,2.4664058]
[1725563759344,0.0039,56431.0,56430.0,2.44975846]
[1725563759599,0.000818,56451.0,56450.0,1.249632]
[1725563759815,0.000818,56451.0,56450.0,1.42514296]
[1725563760030,0.000818,56451.0,56449.0,0.17715]
[1725563760246,0.000818,56451.0,56450.0,0.531442]
[1725563760470,0.000818,56451.0,56450.0,0.885737]
[1725563760916,0.000818,56451.0,56450.0,0.531442]
[1725563761124,0.000818,56451.0,56450.0,0.539442]
[1725563761125,0.001818,56451.0,56450.0,0.539442]
[1725563761781,0.001818,56451.0,56450.0,0.904737]
[1725563761992,0.001818,56451.0,56450.0,0.893737]
[1725563762228,0.001818,56451.0,56450.0,0.539442]
[1725563763065,0.001818,56451.0,56450.0,0.900737]
[1725563763781,0.001818,56451.0,56450.0,0.192147]
[1725563764204,0.001818,56451.0,56450.0,0.546442]
[1725563764424,0.001818,56451.0,56450.0,0.192147]
[1725563764649,0.001818,56451.0,56450.0,0.015]
[1725563764650,0.409062,56451.0,56450.0,0.015]
[1725563765289,0.231918,56451.0,56450.0,0.015]
[1725563765498,0.409062,56451.0,56450.0,0.015]
[1725563765939,0.231918,56451.0,56450.0,0.015]
[1725563766151,0.409062,56451.0,56450.0,0.015]
[1725563766429,1.472329,56451.0,56450.0,0.015]
[1725563767071,2.116961,56451.0,56450.0,0.015]
[1725563767313,2.47125,56451.0,56450.0,0.015]
[1725563767533,2.57025,56451.0,56450.0,0.007]
[1725563767737,1.925618,56451.0,56450.0,0.007]
[1725563767954,1.925618,56451.0,56450.0,0.003]
[1725563767955,1.21704,56451.0,56450.0,0.003]
[1725563768160,0.862751,56451.0,56450.0,0.003]
[1725563768369,1.21704,56451.0,56450.0,0.005]
[1725563769407,0.862751,56451.0,56450.0,0.005]
[1725563769819,0.762751,56451.0,56450.0,0.005]
[1725563770273,1.11704,56451.0,56450.0,0.005]
[1725563771186,1.13550873,56451.0,56450.0,0.005]
[1725563771840,0.78121973,56451.0,56450.0,0.005]
[1725563772273,1.13550873,56451.0,56450.0,0.005]
[1725563775753,1.48979773,56451.0,56450.0,0.005]
[1725563776070,1.58979773,56451.0,56450.0,0.005]
[1725563776495,1.23550873,56451.0,56450.0,0.005]
[1725563777365,1.23550873,56451.0,56450.0,0.003]
[1725563777662,1.23550873,56451.0,56450.0,0.17951096]
[1725563777663,0.01968673,56451.0,56450.0,0.17951096]
[1725563777878,0.01928673,56451.0,56450.0,1.59994296]
[1725563778104,0.01928673,56451.0,56450.0,1.24564796]
[1725563778334,0.007818,56451.0,56450.0,1.24564796]
[1725563778554,0.007818,56451.0,56450.0,1.59994296]
[1725563778814,0.000818,56451.0,56450.0,1.61894296]
[1725563779036,0.000818,56451.0,56450.0,1.71894296]
[1725563779262,0.000818,56451.0,56450.0,1.72294296]
[1725563779470,0.000818,56451.0,56450.0,1.72494296]
[1725563779692,0.000818,56451.0,56450.0,2.07923796]
[1725563779898,0.000818,56451.0,56450.0,1.72494296]
[1725563780131,0.000818,56451.0,56450.0,1.74158828]
[1725563780342,0.000818,56451.0,56450.0,1.72494296]
[1725563780555,0.000818,56451.0,56450.0,1.72394296]
[1725563780768,0.000818,56451.0,56450.0,1.73794296]
[1725563780978,0.000818,56451.0,56450.0,1.73494296]
[1725563781190,0.000818,56451.0,56450.0,1.72094296]
[1725563781397,0.000818,56451.0,56450.0,1.73494296]
[1725563781398,0.001818,56451.0,56450.0,1.73494296]
[1725563781618,0.001818,56451.0,56450.0,1.74894296]
[1725563781837,0.000818,56451.0,56450.0,1.73494296]
[1725563782058,0.001818,56451.0,56450.0,1.74894296]
[1725563784066,0.001818,56451.0,56450.0,0.55445796]
[1725563784281,0.001818,56451.0,56450.0,0.028]
[1725563784929,0.356107,56451.0,56450.0,0.028]
[1725563785225,0.533251,56451.0,56450.0,0.028]
[1725563785425,0.178962,56451.0,56450.0,0.028]
[1725563785632,0.533251,56451.0,56450.0,0.028]
[1725563785848,0.88654,56451.0,56450.0,0.014]
[1725563786069,0.177962,56451.0,56450.0,0.014]
[1725563786745,0.177151,56449.0,56444.0,0.177166]
[1725563786950,0.355107,56451.0,56442.0,0.187169]
[1725563786951,0.177154,56448.0,56442.0,0.187169]
[1725563787176,0.354299,56450.0,56438.0,0.1286]
[1725563787177,0.0004,56450.0,56438.0,0.1286]
[1725563787388,0.34503985,56447.0,56439.0,0.00354328]
[1725563787611,0.34503985,56447.0,56433.0,0.0296]
[1725563787612,0.0004,56447.0,56433.0,0.0296]
[1725563787843,0.0004,56447.0,56438.0,0.177184]
[1725563787844,0.177171,56443.0,56438.0,0.177184]
[1725563788056,0.177171,56443.0,56439.0,0.177182]
[1725563788280,0.1347,56449.0,56442.0,0.014]
[1725563788281,0.001,56449.0,56442.0,0.014]
[1725563788494,0.0985,56452.0,56440.0,0.17551096]
[1725563788495,0.177165,56445.0,56441.0,0.177176]
[1725563788913,0.002,56447.0,56444.0,0.177166]
[1725563789159,0.177165,56445.0,56441.0,0.305775]
[1725563789363,0.002,56447.0,56443.0,0.354339]
[1725563789584,0.002,56447.0,56445.0,0.177161]
[1725563790046,0.002,56447.0,56441.0,0.1286]
[1725563790047,0.001,56447.0,56442.0,0.354345]
[1725563790263,0.177163,56446.0,56441.0,0.1296]
[1725563790549,0.177162,56446.0,56441.0,0.306773]
[1725563790746,0.177157,56447.0,56442.0,0.354345]
[1725563790960,0.177148,56450.0,56443.0,0.354338]
[1725563791179,0.000818,56451.0,56445.0,0.004]
[1725563791180,0.177151,56449.0,56445.0,0.004]
[1725563791386,0.355112,56451.0,56445.0,0.004]
[1725563791387,0.000818,56451.0,56445.0,0.004]
[1725563791629,0.355107,56451.0,56445.0,0.004]
[1725563791887,0.355107,56451.0,56442.0,0.354342]
[1725563791888,0.000818,56451.0,56450.0,0.531442]
[1725563792313,0.000818,56451.0,56450.0,1.41754296]
[1725563792519,0.000818,56451.0,56450.0,1.55834296]
[1725563792723,0.000818,56451.0,56450.0,1.58134296]
[1725563793590,0.000818,56451.0,56450.0,1.93763796]
[1725563794015,0.000818,56451.0,56450.0,1.93863796]
[1725563794228,0.000818,56451.0,56450.0,1.93963796]
[1725563794473,0.000818,56451.0,56450.0,1.58334296]
[1725563794909,0.001818,56451.0,56450.0,1.61134296]
[1725563795125,0.001818,56451.0,56450.0,1.59734296]
[1725563795560,0.001818,56451.0,56450.0,1.59974296]
[1725563795819,0.001818,56451.0,56450.0,1.60934296]
[1725563796012,0.001818,56451.0,56450.0,1.61134296]
[1725563796222,0.000818,56451.0,56450.0,1.59734296]
[1725563796437,0.000818,56451.0,56450.0,1.20844796]
[1725563796643,0.000818,56451.0,56450.0,0.38065796]
[1725563796850,0.000818,56451.0,56450.0,0.72095296]
[1725563797475,0.000818,56451.0,56450.0,0.73495296]
[1725563797689,0.000818,56451.0,56450.0,0.028]
[1725563797894,0.000818,56451.0,56450.0,0.205147]
[1725563798221,0.000818,56451.0,56450.0,0.559442]
[1725563798482,0.000818,56451.0,56450.0,0.913737]
[1725563798717,0.000818,56451.0,56450.0,0.559442]
[1725563799373,0.000818,56451.0,56450.0,0.028]
[1725563799828,0.000818,56451.0,56450.0,0.559442]
[1725563800457,0.000818,56451.0,56450.0,0.545442]
[1725563800933,0.000818,56451.0,56450.0,0.559442]
[1725563801154,0.000818,56451.0,56450.0,0.545442]
[1725563801368,0.000818,56451.0,56450.0,1.24804796]
[1725563801591,0.000818,56451.0,56450.0,1.23404796]
[1725563801932,0.000818,56451.0,56450.0,1.24704796]
[1725563802216,0.000818,56451.0,56450.0,1.58734296]
[1725563802984,0.000818,56451.0,56450.0,1.23304796]
[1725563803195,0.001818,56451.0,56450.0,1.24504796]
[1725563804291,0.001818,56451.0,56450.0,1.11884796]
[1725563804684,0.001818,56451.0,56450.0,0.73195296]
[1725563804897,0.001818,56451.0,56450.0,0.025]
[1725563805526,0.001818,56451.0,56450.0,0.556442]
[1725563805729,0.001818,56451.0,56450.0,0.910737]
[1725563805963,0.001818,56451.0,56450.0,0.556442]
[1725563806349,0.001818,56451.0,56450.0,1.08624796]
[1725563810091,0.001818,56451.0,56450.0,0.73195296]
[1725563810986,0.001818,56451.0,56450.0,0.025]
[1725563811195,0.001818,56451.0,56450.0,0.202147]
[1725563811419,0.001818,56451.0,56450.0,0.025]
[1725563811670,0.001818,56451.0,56450.0,0.202147]
[1725563812349,0.001818,56451.0,56450.0,0.556442]
[1725563812599,0.161234,56454.0,56451.0,0.177143]
[1725563813042,0.177132,56455.0,56452.0,0.17714]
[1725563813778,0.354263,56456.0,56450.0,0.366295]
[1725563813991,0.177134,56455.0,56452.0,0.17714]
[1725563814202,0.177135,56454.0,56452.0,0.17714]
[1725563814799,0.177133,56455.0,56452.0,0.17714]
[1725563815278,0.2268,56458.0,56453.0,0.354273]
[1725563815491,0.403925,56458.0,56448.0,0.0096]
[1725563815710,0.1006,56458.0,56456.0,0.177128]
[1725563815929,0.49299673,56461.0,56454.0,0.354269]
[1725563815930,0.01846873,56461.0,56460.0,0.531349]
[1725563816154,0.01846873,56461.0,56460.0,1.06109296]
[1725563816561,0.01846873,56461.0,56460.0,1.41532596]
[1725563817269,0.01846873,56461.0,56460.0,1.09569296]
[1725563817502,0.01846873,56461.0,56460.0,1.44992596]
[1725563817938,0.01846873,56461.0,56460.0,1.56982596]
[1725563818152,0.1028,56471.0,56470.0,0.177085]
[1725563818374,0.1028,56471.0,56470.0,0.531255]
[1725563818802,0.12126873,56471.0,56470.0,0.177085]
[1725563819652,0.12126873,56471.0,56470.0,0.180085]
[1725563820100,0.12126873,56471.0,56470.0,0.003]
[1725563820541,0.29835073,56471.0,56470.0,0.003]
[1725563820751,0.12126873,56471.0,56470.0,0.003]
[1725563820967,1.41465732,56471.0,56470.0,0.003]
[1725563821187,1.41465732,56471.0,56451.0,0.1258]
[1725563821188,1.03095459,56457.0,56451.0,0.52650515]
[1725563821542,0.578151,56457.0,56451.0,0.52650515]
[1725563821633,0.401026,56457.0,56453.0,0.177136]
[1725563821863,0.177129,56456.0,56453.0,0.177136]
[1725563822928,0.401027,56457.0,56454.0,0.177134]
[1725563823356,0.101916,56457.0,56453.0,0.00354249]
[1725563823564,0.000816,56457.0,56456.0,0.531387]
[1725563823982,0.000816,56457.0,56456.0,0.545387]
[1725563824194,0.000816,56457.0,56454.0,0.177135]
[1725563824401,0.177942,56457.0,56453.0,0.186136]
[1725563824612,0.531405,56454.0,56453.0,0.017]
[1725563824820,0.988575,56454.0,56453.0,0.017]
[1725563825064,1.26465359,56454.0,56453.0,0.008]
[1725563825758,0.177157,56448.0,56442.0,0.821544]
[1725563825987,0.177157,56448.0,56440.0,0.0096]
[1725563825988,0.0004,56449.0,56435.0,0.0096]
[1725563826226,0.177159,56447.0,56443.0,0.177168]
[1725563826448,0.354316,56447.0,56440.0,0.354358]
[1725563826691,0.17716,56446.0,56442.0,0.177172]
[1725563826913,0.457911,56448.0,56442.0,0.177172]
[1725563827137,0.17716,56446.0,56442.0,0.177171]
[1725563827834,0.17716,56446.0,56442.0,0.191171]
[1725563828060,0.177162,56446.0,56442.0,0.191172]
[1725563828291,0.457911,56448.0,56442.0,0.191172]
[1725563828292,0.177166,56444.0,56442.0,0.005]
[1725563828517,0.177163,56445.0,56442.0,0.005]
[1725563828744,0.1036,56448.0,56447.0,0.177157]
[1725563828970,0.355472,56457.0,56447.0,0.177157]
[1725563828971,0.1053,56454.0,56453.0,0.177138]
[1725563829286,0.000816,56457.0,56456.0,0.531387]
[1725563829516,0.000816,56457.0,56456.0,1.41541396]
[1725563829747,0.000816,56457.0,56456.0,1.54461396]
[1725563829959,0.000816,56457.0,56456.0,1.19035596]
[1725563831087,0.002816,56457.0,56456.0,1.19035596]
[1725563831310,0.002816,56457.0,56454.0,0.354266]
[1725563831536,0.002816,56457.0,56453.0,0.354273]
[1725563831791,0.1043,56462.0,56455.0,0.177131]
[1725563831792,0.177122,56459.0,56455.0,0.177131]
[1725563832021,0.001,56457.0,56456.0,0.177128]
[1725563832448,0.177117,56460.0,56456.0,0.177128]
[1725563832662,0.35423,56461.0,56454.0,0.354266]
[1725563832902,0.177118,56460.0,56456.0,0.177128]
[1725563833358,0.177118,56460.0,56453.0,0.17551096]
[1725563833359,0.1279,56459.0,56453.0,0.17551096]
[1725563833567,0.1279,56459.0,56445.0,0.383926]
[1725563833568,0.1279,56459.0,56449.0,0.354296]
[1725563833795,0.354252,56457.0,56451.0,0.177144]
[1725563834012,0.177132,56455.0,56451.0,0.177144]
[1725563834707,0.177132,56455.0,56446.0,0.35432]
[1725563834708,0.0981,56455.0,56448.0,0.354308]
[1725563834933,0.0981,56455.0,56449.0,0.17715]
[1725563835147,0.0981,56455.0,56450.0,0.177147]
[1725563835379,0.177136,56454.0,56450.0,0.177147]
[1725563835605,0.177136,56454.0,56448.0,0.354304]
[1725563835913,0.275234,56455.0,56450.0,0.177147]
[1725563836120,0.354271,56454.0,56447.0,0.17551096]
[1725563836337,0.354277,56453.0,56447.0,0.17551096]
[1725563836784,0.177169,56443.0,56442.0,0.4672]
[1725563837041,0.1032,56449.0,56435.0,0.53610515]
[1725563837042,0.1036,56449.0,56435.0,0.53610515]
[1725563837262,0.177154,56448.0,56439.0,0.354363]
[1725563837477,0.177154,56448.0,56447.0,0.002]
[1725563837688,0.354308,56448.0,56437.0,0.354376]
[1725563837924,0.1036,56449.0,56428.0,0.4905]
[1725563837925,0.177188,56438.0,56433.0,0.1872]
[1725563838142,0.531508,56443.0,56442.0,0.014]
[1725563838371,0.885847,56443.0,56442.0,0.014]
[1725563838814,1.240586,56443.0,56442.0,0.014]
[1725563839249,1.345886,56443.0,56442.0,0.014]
[1725563839482,0.177195,56435.0,56431.0,0.001632]
[1725563839767,0.177182,56439.0,56433.0,0.3544]
[1725563839988,0.460044,56443.0,56433.0,0.354402]
[1725563840204,0.17696587,56440.0,56436.0,0.177191]
[1725563840435,0.17696587,56440.0,56432.0,0.17551096]
[1725563840436,0.28287,56443.0,56439.0,0.177181]
[1725563840683,0.28287,56443.0,56435.0,0.177191]
[1725563840684,0.17718,56440.0,56435.0,0.177191]
[1725563840881,0.460042,56443.0,56434.0,0.177197]
[1725563840882,0.354351,56442.0,56434.0,0.177197]
[1725563841106,0.177179,56440.0,56434.0,0.354391]
[1725563841312,0.177182,56439.0,56435.0,0.177194]
[1725563841740,0.354356,56441.0,56439.0,0.002]
[1725563841741,0.177176,56441.0,56439.0,0.002]
[1725563842168,0.177176,56441.0,56437.0,0.177188]
[1725563842390,0.46004,56443.0,56436.0,0.354381]
[1725563842391,0.637213,56443.0,56438.0,0.177185]
[1725563842611,0.177176,56441.0,56437.0,0.177188]
[1725563843258,0.28287,56443.0,56439.0,0.182182]
[1725563843485,0.177176,56441.0,56437.0,0.177188]
[1725563843906,0.177176,56441.0,56437.0,0.182188]
[1725563844122,0.177176,56441.0,56437.0,0.181188]
[1725563844339,0.177176,56441.0,56439.0,0.003]
[1725563844590,0.1262,56440.0,56439.0,0.003]
[1725563844844,1.464153,56440.0,56439.0,0.003]
[1725563845710,1.464153,56440.0,56439.0,0.004]
[1725563845930,1.659712,56440.0,56439.0,0.004]
[1725563846165,1.464153,56440.0,56439.0,0.004]